fUSD/lending_fUSD_20250213
["ID","MTS","AMOUNT","RATE_DAILY","PERIOD"]
[352928862,1739439048137,-500.0,0.00015199,2]
[352928863,1739439048147,-595.1,0.00015199,2]
[352928864,1739439048156,-562.01,0.00015199,2]
[352928865,1739439048167,-504.06379656,0.00015199,2]
[352928866,1739439048176,-510.187878,0.00015199,2]
[352928867,1739439048186,-3123.03,0.00015199,2]
[352928868,1739439048196,-500.0,0.00015199,2]
[352928869,1739439048206,-789.27,0.00015199,2]
[352928870,1739439048216,-2429.15,0.00015199,2]
[352928871,1739439048226,-500.0,0.00015199,2]
[352928872,1739439048236,-4837.04,0.00015199,2]
[352928873,1739439048246,-2782.04,0.00015199,2]
[352928874,1739439048256,-504.42770675,0.00015199,2]
[352928875,1739439048266,-504.75370137,0.00015199,2]
[352928876,1739439048278,-1199.55,0.00015199,2]
[352928877,1739439048288,-500.0,0.00015199,2]
[352928878,1739439048298,-500.0,0.00015199,2]
[352928879,1739439048308,-500.0,0.00015199,2]
[352928880,1739439048318,-500.0,0.00015199,2]
[352928881,1739439048328,-500.0,0.00015199,2]
[352928882,1739439048338,-12216.38,0.00015199,2]
[352928883,1739439048348,-1652.91,0.00015199,2]
[352928884,1739439048359,-511.53581266,0.00015199,2]
[352928885,1739439048369,-500.0,0.00015199,2]
[352928886,1739439048379,-500.0,0.00015199,2]
[352928887,1739439048388,-500.0,0.00015199,2]
[352928888,1739439048398,-503.04289279,0.00015199,2]
[352928889,1739439048408,-1303.6,0.00015199,2]
[352928890,1739439048418,-6499.77,0.00015199,2]
[352928891,1739439048427,-500.0,0.00015199,2]
[352928892,1739439048438,-502.21601114,0.00015199,2]
[352928893,1739439048448,-501.63743536,0.00015199,2]
[352928894,1739439048460,-500.0,0.00015199,2]
[352928895,1739439048471,-273.86271838,0.00015199,2]
[352928896,1739439048481,-500.0,0.00015199,2]
[352928897,1739439048491,-502.04142894,0.00015199,2]
[352928898,1739439048501,-3778.35,0.00015199,2]
[352928899,1739439048510,-2112.17,0.00015199,2]
[352928900,1739439048520,-501.50501652,0.00015199,2]
[352928901,1739439048530,-627.69,0.00015199,2]
[352928902,1739439048542,-2736.34,0.00015199,2]
[352928903,1739439048552,-506.25984736,0.00015199,2]
[352928904,1739439048563,-500.0,0.00015199,2]
[352928905,1739439048576,-1813.14,0.00015199,2]
[352928906,1739439048740,-4547.53,0.00015199,2]
[352928907,1739439048750,-1611.72,0.00015199,2]
[352928908,1739439048760,-509.77443942,0.00015199,2]
[352928909,1739439048771,-500.0,0.00015199,2]
[352928910,1739439048781,-938.62,0.00015199,2]
[352928911,1739439048790,-248.17103882,0.00015199,2]
[352928912,1739439048800,-502.57856063,0.00015199,2]
[352928913,1739439048809,-2680.72,0.00015199,2]
[352928914,1739439048818,-939.66,0.00015199,2]
[352928915,1739439048828,-3057.67,0.00015199,2]
[352928916,1739439048839,-500.0,0.00015199,2]
[352928917,1739439048851,-500.0,0.00015199,2]
[352928918,1739439048861,-500.0,0.00015199,2]
[352928919,1739439048872,-500.0,0.00015199,2]
[352928920,1739439048882,-500.0,0.00015199,2]
[352928921,1739439048892,-512.41586463,0.00015199,2]
[352928922,1739439048902,-500.0,0.00015199,2]
[352928923,1739439048913,-3348.99,0.00015199,2]
[352928924,1739439048922,-656.04,0.00015199,2]
[352928925,1739439048932,-500.0,0.00015199,2]
[352928926,1739439048942,-6509.41,0.00015199,2]
[352928927,1739439048952,-500.0,0.00015199,2]
[352928928,1739439048962,-500.0,0.00015199,2]
[352928929,1739439048972,-644.97,0.00015199,2]
[352928930,1739439048982,-2217.09,0.00015199,2]
[352928931,1739439048991,-500.0,0.00015199,2]
[352928932,1739439049002,-500.0,0.00015199,2]
[352928933,1739439049011,-500.0,0.00015199,2]
[352928934,1739439049022,-913.68,0.00015199,2]
[352928935,1739439049032,-500.0,0.00015199,2]
[352928936,1739439049042,-497.165442,0.00015199,2]
[352928937,1739439049052,-500.0,0.00015199,2]
[352928938,1739439049062,-666.84,0.00015199,2]
[352928939,1739439049072,-2541.63,0.00015199,2]
[352928940,1739439049083,-3615.1,0.00015199,2]
[352928941,1739439049092,-500.0,0.00015199,2]
[352928942,1739439049103,-500.0,0.00015199,2]
[352928943,1739439049113,-500.0,0.00015199,2]
[352928944,1739439049123,-500.0,0.00015199,2]
[352928945,1739439049132,-500.0,0.00015199,2]
[352928946,1739439049143,-575.96,0.00015199,2]
[352928947,1739439049153,-500.0,0.00015199,2]
[352928948,1739439049163,-4044.09,0.00015199,2]
[352928949,1739439049173,-1343.49,0.00015199,2]
[352928950,1739439049184,-500.0,0.00015199,2]
[352928951,1739439049194,-1367.47,0.00015199,2]
[352928952,1739439049204,-500.0,0.00015199,2]
[352928953,1739439049215,-500.0,0.00015199,2]
[352928954,1739439049225,-500.0,0.00015199,2]
[352928955,1739439049235,-1860.01,0.00015199,2]
[352928956,1739439049245,-1726.68,0.00015199,2]
[352928957,1739439049255,-500.0,0.00015199,2]
[352928958,1739439049265,-2365.65,0.00015199,2]
[352928959,1739439049276,-500.0,0.00015199,2]
[352928960,1739439049285,-500.0,0.00015199,2]
[352928961,1739439049295,-500.0,0.00015199,2]
[352928962,1739439049305,-6247.32,0.00015199,2]
[352928963,1739439049315,-500.0,0.00015199,2]
[352928964,1739439049324,-503.00795365,0.00015199,2]
[352928965,1739439049334,-500.0,0.00015199,2]
[352928966,1739439049343,-1416.32,0.00015199,2]
[352928967,1739439049352,-3390.97,0.00015199,2]
[352928968,1739439049362,-671.67,0.00015199,2]
[352928969,1739439049371,-500.0,0.00015199,2]
[352928970,1739439049381,-500.0,0.00015199,2]
[352928971,1739439049390,-500.0,0.00015199,2]
[352928972,1739439049400,-516.49731141,0.00015199,2]
[352928973,1739439049409,-500.0,0.00015199,2]
[352928974,1739439049419,-4101.99,0.00015199,2]
[352928975,1739439049428,-2374.9,0.00015199,2]
[352928976,1739439049438,-504.47355783,0.00015199,2]
[352928977,1739439049448,-500.0,0.00015199,2]
[352928978,1739439049461,-502.81443328,0.00015199,2]
[352928979,1739439049470,-3885.5,0.00015199,2]
[352928980,1739439049479,-385.54312696,0.00015199,2]
[352928981,1739439049489,-500.0,0.00015199,2]
[352928982,1739439049499,-500.0,0.00015199,2]
[352928983,1739439049508,-504.4877135,0.00015199,2]
[352928984,1739439049518,-500.0,0.00015199,2]
[352928985,1739439049527,-500.0,0.00015199,2]
[352928986,1739439049537,-702.86,0.00015199,2]
[352928987,1739439049547,-500.0,0.00015199,2]
[352928988,1739439049556,-2799.22,0.00015199,2]
[352928989,1739439049566,-501.91076409,0.00015199,2]
[352928990,1739439049575,-501.42351033,0.00015199,2]
[352928991,1739439049584,-2785.59,0.00015199,2]
[352928992,1739439049594,-500.0,0.00015199,2]
[352928993,1739439049603,-2747.58,0.00015199,2]
[352928994,1739439049613,-500.0,0.00015199,2]
[352928995,1739439049633,-500.71401675,0.00015199,2]
[352928996,1739439049649,-500.0,0.00015199,2]
[352928997,1739439049669,-500.15348604,0.00015199,2]
[352928998,1739439049688,-500.0,0.00015199,2]
[352928999,1739439049704,-3382.34,0.00015199,2]
[352929000,1739439049723,-2450.24,0.00015199,2]
[352929001,1739439049742,-500.0,0.00015199,2]
[352929002,1739439049761,-639.94,0.00015199,2]
[352929003,1739439049779,-1465.75,0.00015199,2]
[352929004,1739439049799,-500.0,0.00015199,2]
[352929005,1739439049816,-500.0,0.00015199,2]
[352929006,1739439049830,-500.87854077,0.00015199,2]
[352929007,1739439049850,-500.0,0.00015199,2]
[352929008,1739439049863,-733.35,0.00015199,2]
[352929009,1739439049882,-500.0,0.00015199,2]
[352929010,1739439049900,-500.0,0.00015199,2]
[352929011,1739439049914,-500.0,0.00015199,2]
[352929012,1739439049932,-528.75,0.00015199,2]
[352929013,1739439049946,-642.87264623,0.00015199,2]
[352929014,1739439049962,-2896.84,0.00015199,2]
[352929015,1739439049976,-631.96,0.00015199,2]
[352929016,1739439049991,-6890.1,0.00015199,2]
[352929017,1739439050012,-500.0,0.00015199,2]
[352929018,1739439050032,-3336.34,0.00015199,2]
[352929019,1739439050048,-2906.54,0.00015199,2]
[352929020,1739439050065,-500.0,0.00015199,2]
[352929021,1739439050081,-163.6449409,0.000152,2]
[352929022,1739439050096,-621144.13723136,0.000152,2]
[352929023,1739439050111,-178.34010896,0.00015201,2]
[352929024,1739439050126,-150.0,0.00015202,2]
[352929025,1739439050141,-150.0,0.0001521,2]
[352929026,1739439050159,-150.0,0.00015212,2]
[352929027,1739439050174,-150.0,0.00015212,2]
[352929028,1739439050189,-150.0,0.00015219,2]
[352929029,1739439050204,-150.0,0.0001522,2]
[352929030,1739439050220,-150.0,0.00015224,2]
[352929031,1739439050236,-163.6449409,0.00015225,2]
[352929032,1739439050251,-150.0,0.00015228,2]
[352929033,1739439050266,-150.0,0.00015228,2]
[352929034,1739439050282,-150.0,0.00015231,2]
[352929035,1739439050297,-150.0,0.00015235,2]
[352929036,1739439050312,-150.0,0.00015235,2]
[352929037,1739439050327,-150.0,0.0001524,2]
[352929038,1739439050344,-150.0,0.0001524,2]
[352929039,1739439050359,-163.6449409,0.0001525,2]
[352929040,1739439050375,-150.0,0.00015251,2]
[352929041,1739439050391,-150.0,0.00015251,2]
[352929042,1739439050408,-150.0,0.00015255,2]
[352929043,1739439050423,-150.0,0.00015258,2]
[352929044,1739439050439,-244.11994347,0.00015264,2]
[352929045,1739439050455,-1000.0,0.00015266,2]
[352929046,1739439050472,-2000.0,0.00015266,2]
[352929047,1739439050487,-500.0,0.00015266,2]
[352929048,1739439050504,-150.0,0.00015267,2]
[352929049,1739439050519,-150.0,0.00015267,2]
[352929050,1739439050538,-163.6449409,0.00015275,2]
[352929051,1739439050554,-150.0,0.00015283,2]
[352929052,1739439050568,-994.0,0.00015286,2]
[352929053,1739439050583,-150.0,0.00015288,2]
[352929054,1739439050598,-150.0,0.00015298,2]
[352929055,1739439050613,-150.0,0.00015299,2]
[352929056,1739439050628,-150.0,0.000153,2]
[352929057,1739439050643,-1916.28,0.000153,2]
[352929058,1739439050657,-178.34010896,0.000153,2]
[352929059,1739439050673,-159.81199429,0.000153,2]
[352929060,1739439050689,-163.6449409,0.000153,2]
[352929061,1739439050706,-245.457053,0.000153,2]
[352929062,1739439050721,-359.49270823,0.000153,2]
[352929063,1739439050738,-150.0,0.00015302,2]
[352929064,1739439050753,-150.0,0.00015308,2]
[352929065,1739439050768,-150.0,0.00015309,2]
[352929066,1739439050783,-150.0,0.0001531,2]
[352929067,1739439050800,-150.0,0.00015311,2]
[352929068,1739439050814,-150.0,0.00015321,2]
[352929069,1739439050830,-150.0,0.00015326,2]
[352929070,1739439050846,-500.0,0.00015328,2]
[352929071,1739439050864,-627.5284558,0.00015328,2]
[352929072,1739439050878,-500.0,0.00015328,2]
[352929073,1739439050889,-300.0,0.00015329,2]
[352929074,1739439050898,-1175.63,0.00015329,2]
[352929075,1739439050909,-1671.36,0.00015329,2]
[352929076,1739439050920,-2005.44,0.00015329,2]
[352929077,1739439050930,-500.0,0.00015329,2]
[352929078,1739439050940,-500.0,0.00015329,2]
[352929079,1739439050951,-1718.18,0.00015329,2]
[352929080,1739439050963,-2701.71,0.00015329,2]
[352929081,1739439050973,-500.0,0.00015329,2]
[352929082,1739439050983,-500.0,0.00015329,2]
[352929083,1739439051276,-1508.39,0.00015329,2]
[352929084,1739439051300,-1262.91,0.00015329,2]
[352929085,1739439051324,-500.0,0.00015329,2]
[352929086,1739439051333,-500.0,0.00015329,2]
[352929087,1739439051343,-2013.9,0.00015329,2]
[352929088,1739439051352,-500.0,0.00015329,2]
[352929089,1739439051361,-636.19,0.00015329,2]
[352929090,1739439051371,-1544.59,0.00015329,2]
[352929091,1739439051381,-2576.1,0.00015329,2]
[352929092,1739439051390,-1580.18,0.00015329,2]
[352929093,1739439051400,-500.0,0.00015329,2]
[352929094,1739439051410,-1748.47,0.00015329,2]
[352929095,1739439051419,-500.0,0.00015329,2]
[352929096,1739439051428,-500.0,0.00015329,2]
[352929097,1739439051439,-1746.61,0.00015329,2]
[352929098,1739439051451,-1199.52,0.00015329,2]
[352929099,1739439051464,-500.0,0.00015329,2]
[352929100,1739439051474,-1579.6,0.00015329,2]
[352929101,1739439051484,-1266.78,0.00015329,2]
[352929102,1739439051493,-996.98,0.00015329,2]
[352929103,1739439051503,-1296.3,0.00015329,2]
[352929104,1739439051513,-1516.63,0.00015329,2]
[352929105,1739439051524,-2258.33,0.00015329,2]
[352929106,1739439051534,-1232.06,0.00015329,2]
[352929107,1739439051545,-1145.26,0.00015329,2]
[352929108,1739439051556,-1107.0,0.00015329,2]
[352929109,1739439051566,-1136.64,0.00015329,2]
[352929110,1739439051576,-1948.43,0.00015329,2]
[352929111,1739439051586,-1195.38,0.00015329,2]
[352929112,1739439051597,-1467.18,0.00015329,2]
[352929113,1739439051606,-1578.32,0.00015329,2]
[352929114,1739439051616,-763.33,0.00015329,2]
[352929115,1739439051625,-1161.31,0.00015329,2]
[352929116,1739439051634,-500.0,0.00015329,2]
[352929117,1739439051644,-500.0,0.00015329,2]
[352929118,1739439051653,-2247.94,0.00015329,2]
[352929119,1739439051662,-500.0,0.00015329,2]
[352929120,1739439051672,-1299.12,0.00015329,2]
[352929121,1739439051681,-1220.01,0.00015329,2]
[352929122,1739439051690,-1742.93,0.00015329,2]
[352929123,1739439051700,-500.0,0.00015329,2]
[352929124,1739439051709,-904.26,0.00015329,2]
[352929125,1739439051718,-1980.15,0.00015329,2]
[352929126,1739439051727,-564.79,0.00015329,2]
[352929127,1739439051736,-1506.6,0.00015329,2]
[352929128,1739439051746,-500.0,0.00015329,2]
[352929129,1739439051755,-1732.95,0.00015329,2]
[352929130,1739439051764,-500.0,0.00015329,2]
[352929131,1739439051773,-1228.72,0.00015329,2]
[352929132,1739439051782,-500.0,0.00015329,2]
[352929133,1739439051791,-1435.68,0.00015329,2]
[352929134,1739439051801,-818.39,0.00015329,2]
[352929135,1739439051810,-500.0,0.00015329,2]
[352929136,1739439051818,-500.0,0.00015329,2]
[352929137,1739439051828,-1139.48,0.00015329,2]
[352929138,1739439051838,-1112.98,0.00015329,2]
[352929139,1739439051847,-1093.02,0.00015329,2]
[352929140,1739439051857,-1402.39,0.00015329,2]
[352929141,1739439051867,-984.24,0.00015329,2]
[352929142,1739439051876,-500.0,0.00015329,2]
[352929143,1739439051887,-1513.56,0.00015329,2]
[352929144,1739439051896,-1623.82,0.00015329,2]
[352929145,1739439051906,-999.0,0.00015329,2]
[352929146,1739439051917,-2230.26,0.00015329,2]
[352929147,1739439051927,-500.0,0.00015329,2]
[352929148,1739439051936,-500.0,0.00015329,2]
[352929149,1739439051946,-614.67,0.00015329,2]
[352929150,1739439051956,-1253.85,0.00015329,2]
[352929151,1739439051966,-1221.65,0.00015329,2]
[352929152,1739439051975,-500.0,0.00015329,2]
[352929153,1739439051986,-490.05,0.00015329,2]
[352929154,1739439051995,-500.0,0.0001533,2]
[352929155,1739439052005,-500.41197142,0.0001533,2]
[352929156,1739439052014,-500.0,0.0001533,2]
[352929157,1739439052023,-500.0,0.0001533,2]
[352929158,1739439052035,-500.0,0.0001533,2]
[352929159,1739439052046,-500.0,0.0001533,2]
[352929160,1739439052055,-500.7071209,0.0001533,2]
[352929161,1739439052065,-500.0,0.0001533,2]
[352929162,1739439052075,-500.0,0.0001533,2]
[352929163,1739439052084,-500.0,0.0001533,2]
[352929164,1739439052093,-500.0,0.0001533,2]
[352929165,1739439052102,-454.7260106,0.0001533,2]
[352929166,1739439052111,-500.0,0.0001533,2]
[352929167,1739439052120,-500.0,0.0001533,2]
[352929168,1739439052130,-300.0,0.0001533,2]
[352929169,1739439052139,-503.71760818,0.0001533,2]
[352929170,1739439052149,-500.0,0.0001533,2]
[352929171,1739439052159,-500.74401901,0.0001533,2]
[352929172,1739439052170,-500.0,0.0001533,2]
[352929173,1739439052179,-500.0,0.0001533,2]
[352929174,1739439052188,-500.0,0.0001533,2]
[352929175,1739439052197,-500.0,0.0001533,2]
[352929176,1739439052206,-500.0,0.0001533,2]
[352929177,1739439052215,-500.0,0.0001533,2]
[352929178,1739439052224,-501.01270654,0.0001533,2]
[352929179,1739439052233,-500.0,0.0001533,2]
[352929180,1739439052242,-500.0,0.0001533,2]
[352929181,1739439052251,-291.70620789,0.0001533,2]
[352929182,1739439052260,-500.4630791,0.0001533,2]
[352929183,1739439052269,-500.46968566,0.0001533,2]
[352929184,1739439052278,-500.0,0.0001533,2]
[352929185,1739439052288,-500.0,0.0001533,2]
[352929186,1739439052300,-500.0,0.0001533,2]
[352929187,1739439052309,-500.0,0.0001533,2]
[352929188,1739439052318,-501.45132337,0.0001533,2]
[352929189,1739439052328,-165.77689355,0.0001533,2]
[352929190,1739439052336,-500.0,0.0001533,2]
[352929191,1739439052345,-500.0,0.0001533,2]
[352929192,1739439052355,-500.0,0.0001533,2]
[352929193,1739439052364,-500.0,0.0001533,2]
[352929194,1739439052373,-500.0,0.0001533,2]
[352929195,1739439052383,-500.0,0.0001533,2]
[352929196,1739439052392,-500.0,0.0001533,2]
[352929197,1739439052401,-500.0,0.0001533,2]
[352929198,1739439052411,-500.0,0.0001533,2]
[352929199,1739439052420,-500.0,0.0001533,2]
[352929200,1739439052430,-500.0,0.0001533,2]
[352929201,1739439052439,-500.0,0.0001533,2]
[352929202,1739439052448,-500.0,0.0001533,2]
[352929203,1739439052460,-500.0,0.0001533,2]
[352929204,1739439052470,-500.0,0.0001533,2]
[352929205,1739439052480,-500.0,0.0001533,2]
[352929206,1739439052489,-500.0,0.0001533,2]
[352929207,1739439052500,-500.0,0.0001533,2]
[352929208,1739439052509,-500.0,0.0001533,2]
[352929209,1739439052518,-500.0,0.0001533,2]
[352929210,1739439052528,-500.0,0.0001533,2]
[352929211,1739439052539,-500.0,0.0001533,2]
[352929212,1739439052549,-514.7,0.0001533,2]
[352929213,1739439052559,-501.26739348,0.0001533,2]
[352929214,1739439052568,-500.0,0.0001533,2]
[352929215,1739439052577,-970.44,0.0001533,2]
[352929216,1739439052587,-500.0,0.0001533,2]
[352929217,1739439052596,-1166.36,0.0001533,2]
[352929218,1739439052605,-500.0,0.0001533,2]
[352929219,1739439052615,-500.0,0.0001533,2]
[352929220,1739439052624,-500.0,0.0001533,2]
[352929221,1739439052633,-500.0,0.0001533,2]
[352929222,1739439052642,-500.0,0.0001533,2]
[352929223,1739439052652,-500.0,0.0001533,2]
[352929224,1739439052661,-500.0,0.0001533,2]
[352929225,1739439052670,-500.47526069,0.0001533,2]
[352929226,1739439052679,-323.72448992,0.0001533,2]
[352929227,1739439052688,-500.0,0.0001533,2]
[352929228,1739439052698,-500.0,0.0001533,2]
[352929229,1739439052707,-500.0,0.0001533,2]
[352929230,1739439052716,-500.0,0.0001533,2]
[352929231,1739439052726,-500.0,0.0001533,2]
[352929232,1739439052735,-502.38692744,0.0001533,2]
[352929233,1739439052744,-500.0,0.0001533,2]
[352929234,1739439052754,-235.89328634,0.0001533,2]
[352929235,1739439052764,-500.0,0.0001533,2]
[352929236,1739439052773,-500.0,0.0001533,2]
[352929237,1739439052783,-500.0,0.0001533,2]
[352929238,1739439052792,-500.0,0.0001533,2]
[352929239,1739439052802,-500.0,0.0001533,2]
[352929240,1739439052810,-500.0,0.0001533,2]
[352929241,1739439052819,-500.72357396,0.0001533,2]
[352929242,1739439052828,-500.0,0.0001533,2]
[352929243,1739439052837,-192.42684756,0.0001533,2]
[352929244,1739439052847,-500.0,0.0001533,2]
[352929245,1739439052856,-192.23903421,0.0001533,2]
[352929246,1739439052866,-1334.21,0.0001533,2]
[352929247,1739439052875,-500.0,0.0001533,2]
[352929248,1739439052884,-500.0,0.0001533,2]
[352929249,1739439052893,-500.0,0.0001533,2]
[352929250,1739439052902,-300.0,0.0001533,2]
[352929251,1739439052911,-500.0,0.0001533,2]
[352929252,1739439052920,-1070.01,0.0001533,2]
[352929253,1739439052930,-500.0,0.0001533,2]
[352929254,1739439052938,-501.82625182,0.0001533,2]
[352929255,1739439052947,-500.0,0.0001533,2]
[352929256,1739439052957,-500.0,0.0001533,2]
[352929257,1739439052966,-500.43644608,0.0001533,2]
[352929258,1739439052975,-500.0,0.0001533,2]
[352929259,1739439052984,-274.00720869,0.0001533,2]
[352929260,1739439052994,-500.0,0.0001533,2]
[352929261,1739439053003,-500.0,0.0001533,2]
[352929262,1739439053012,-317.2795341,0.0001533,2]
[352929263,1739439053021,-500.0,0.0001533,2]
[352929264,1739439053030,-500.51657619,0.0001533,2]
[352929265,1739439053040,-599.01,0.0001533,2]
[352929266,1739439053049,-500.0,0.0001533,2]
[352929267,1739439053060,-500.0,0.0001533,2]
[352929268,1739439053069,-500.0,0.0001533,2]
[352929269,1739439053078,-500.0,0.0001533,2]
[352929270,1739439053087,-500.0,0.0001533,2]
[352929271,1739439053097,-500.0,0.0001533,2]
[352929272,1739439053107,-901.17,0.0001533,2]
[352929273,1739439053116,-500.0,0.0001533,2]
[352929274,1739439053127,-500.0,0.0001533,2]
[352929275,1739439053138,-500.0,0.0001533,2]
[352929276,1739439053148,-503.69397327,0.0001533,2]
[352929277,1739439053158,-500.0,0.0001533,2]
[352929278,1739439053167,-500.0,0.0001533,2]
[352929279,1739439053176,-500.0,0.0001533,2]
[352929280,1739439053186,-500.0,0.0001533,2]
[352929281,1739439053195,-807.5,0.0001533,2]
[352929282,1739439053204,-500.0,0.0001533,2]
[352929283,1739439053214,-1526.41,0.0001533,2]
[352929284,1739439053224,-500.0,0.0001533,2]
[352929285,1739439053233,-199.77530916,0.0001533,2]
[352929286,1739439053245,-500.0,0.0001533,2]
[352929287,1739439053255,-500.0,0.0001533,2]
[352929288,1739439053265,-500.0,0.0001533,2]
[352929289,1739439053274,-500.0,0.0001533,2]
[352929290,1739439053283,-650.74,0.0001533,2]
[352929291,1739439053293,-500.0,0.0001533,2]
[352929292,1739439053303,-500.0,0.0001533,2]
[352929293,1739439053313,-716.38,0.0001533,2]
[352929294,1739439053322,-770.98,0.0001533,2]
[352929295,1739439053332,-500.0,0.0001533,2]
[352929296,1739439053342,-500.0,0.0001533,2]
[352929297,1739439053353,-591.44175845,0.0001533,2]
[352929298,1739439053362,-500.0,0.0001533,2]
[352929299,1739439053372,-500.0,0.0001533,2]
[352929300,1739439053381,-500.0,0.0001533,2]
[352929301,1739439053391,-658.3,0.0001533,2]
[352929302,1739439053402,-500.0,0.0001533,2]
[352929303,1739439053412,-500.0,0.0001533,2]
[352929304,1739439053423,-915.11,0.0001533,2]
[352929305,1739439053435,-746.01,0.0001533,2]
[352929306,1739439053445,-500.0,0.0001533,2]
[352929307,1739439053457,-500.0,0.0001533,2]
[352929308,1739439053467,-500.0,0.0001533,2]
[352929309,1739439053478,-500.0,0.0001533,2]
[352929310,1739439053488,-672.88,0.0001533,2]
[352929311,1739439053499,-500.0,0.0001533,2]
[352929312,1739439053508,-1248.25,0.0001533,2]
[352929313,1739439053517,-607.92,0.0001533,2]
[352929314,1739439053527,-962.35,0.0001533,2]
[352929315,1739439053541,-500.0,0.0001533,2]
[352929316,1739439053551,-1166.12,0.0001533,2]
[352929317,1739439053561,-1245.29,0.0001533,2]
[352929318,1739439053571,-500.0,0.0001533,2]
[352929319,1739439053581,-500.0,0.0001533,2]
[352929320,1739439053590,-500.0,0.0001533,2]
[352929321,1739439053599,-500.0,0.0001533,2]
[352929322,1739439053610,-500.0,0.0001533,2]
[352929323,1739439053619,-2282.88,0.0001533,2]
[352929324,1739439053629,-500.0,0.0001533,2]
[352929325,1739439053639,-500.0,0.0001533,2]
[352929326,1739439053650,-500.0,0.0001533,2]
[352929327,1739439053660,-503.93372853,0.0001533,2]
[352929328,1739439053669,-500.0,0.0001533,2]
[352929329,1739439053679,-500.0,0.0001533,2]
[352929330,1739439053688,-1933.76,0.0001533,2]
[352929331,1739439053697,-500.0,0.0001533,2]
[352929332,1739439053706,-500.0,0.0001533,2]
[352929333,1739439053715,-500.0,0.0001533,2]
[352929334,1739439053724,-1136.09,0.0001533,2]
[352929335,1739439053733,-500.0,0.0001533,2]
[352929336,1739439053743,-500.0,0.0001533,2]
[352929337,1739439053752,-927.34,0.0001533,2]
[352929338,1739439053762,-509.72,0.0001533,2]
[352929339,1739439053771,-500.0,0.0001533,2]
[352929340,1739439053780,-151.0,0.0001533,2]
[352929341,1739439053789,-151.0,0.0001533,2]
[352929342,1739439053799,-151.0,0.0001533,2]
[352929343,1739439053808,-151.0,0.0001533,2]
[352929344,1739439053817,-151.0,0.0001533,2]
[352929345,1739439053826,-151.0,0.0001533,2]
[352929346,1739439053835,-500.0,0.0001533,2]
[352929347,1739439053844,-161.18732624,0.0001533,2]
[352929348,1739439053853,-2342.84,0.0001533,2]
[352929349,1739439053862,-500.0,0.0001533,2]
[352929350,1739439053871,-498.51256262,0.0001533,2]
[352929351,1739439053880,-500.0,0.0001533,2]
[352929352,1739439053890,-500.0,0.0001533,2]
[352929353,1739439053902,-2408.3,0.0001533,2]
[352929354,1739439053911,-500.0,0.0001533,2]
[352929355,1739439053921,-500.0,0.0001533,2]
[352929356,1739439053932,-502.74491306,0.0001533,2]
[352929357,1739439053942,-500.0,0.0001533,2]
[352929358,1739439053952,-500.0,0.0001533,2]
[352929359,1739439053963,-500.0,0.0001533,2]
[352929360,1739439053971,-500.0,0.0001533,2]
[352929361,1739439053981,-500.0,0.0001533,2]